Cogmind - Beta 13 @@@ ROGUE MODE // 2024.04.03 @ 18:44:36 Player: SnaveSutit Result: Destroyed self with Mini Grenade Launcher Performance ------------- Evolutions (1) 500 Regions Visited (2) 400 Robots Destroyed (14) 70 Value Destroyed (461) 461 Prototype IDs (0) 0 Alien Tech Used (0) 0 Bonus (0) 0 TOTAL SCORE: 1431 Bonus ------- None Cogmind --------- Core Integrity 0/400 Matter 217/300 Energy 100/100 System Corruption 0% Temperature Cool (0) Movement Core (350) Ox6 Location -9/Materials Parts ------- > --- POWER (1) -------- (None) > --- PROPULSION (2) --- (None) > --- UTILITY (4) ------ Large Storage Unit Signal Interpreter Transport Network Coupler > --- WEAPON (2) ------- Mini Grenade Launcher > --- INVENTORY (15) --- Ion Engine Signal Interpreter Medium Laser Assault Rifle Peak State ------------ > --- POWER ------------ Light Ion Engine > --- PROPULSION ------- Light Treads Light Treads > --- UTILITY ---------- Large Storage Unit Signal Interpreter Transport Network Coupler > --- WEAPON ----------- Improved Light Cannon Mini Grenade Launcher > --- INVENTORY -------- Ion Engine Signal Interpreter Medium Laser Assault Rifle [Rating: 10] Favorites ----------- Power Light Ion Engine Engine Light Ion Engine Propulsion Light Treads Treads Light Treads Utility Large Storage Unit Storage Large Storage Unit Processor Signal Interpreter Weapon Assault Rifle Energy Gun Medium Laser Energy Cannon Light EM Pulse Cannon Ballistic Gun Assault Rifle Ballistic Cannon Improved Light Cannon Launcher Mini Grenade Launcher Build | -11 -10 -9 ------- Run | Yrd Mat Mat Slots Evolved 2 | . . 2 Power . | . . . Propulsion . | . . . Utility 2 | . . 2 Weapon . | . . . Parts Attached 14 | 6 1 7 Power 1 | 1 . . Engine 1 | 1 . . Core . | . . . Reactor . | . . . Propulsion 2 | 2 . . Treads 2 | 2 . . Leg . | . . . Wheel . | . . . Hover . | . . . Flight . | . . . Utility 4 | 1 1 2 Device . | . . . Storage 2 | 1 1 . Processor 2 | . . 2 Hackware . | . . . Protection . | . . . Artifact . | . . . Weapon 7 | 2 . 5 Energy Gun 1 | 1 . . Energy Cannon 1 | . . 1 Ballistic Gun 1 | 1 . . Ballistic Cannon 1 | . . 1 Launcher 3 | . . 3 Special Weapon . | . . . Impact Weapon . | . . . Slashing Weapon . | . . . Piercing Weapon . | . . . Special Melee Weapon . | . . . Unidentified Prototypes . | . . . Parts Lost 3 | . . 3 Power 1 | . . 1 Propulsion 2 | . . 2 Utility . | . . . Weapon . | . . . Highest Loss Streak 2 | . . 2 To Critical Strikes . | . . . Average Slot Usage (%) 79 | . 85 75 Engine 11 | . 14 9 Treads 22 | . 28 17 Storage 12 | . 14 11 Processor 8 | . . 15 Energy Gun 7 | . 14 1 Energy Cannon 1 | . . 2 Ballistic Gun 7 | . 14 1 Ballistic Cannon 4 | . . 8 Launcher 3 | . . 6 Naked Turns . | . . . Heaviest Build 31 | 12 27 31 Greatest Support 40 | 40 40 40 Greatest Overweight (x) 6 | . . 6 Average Overweight (x) . | . . . Largest Inventory Capacity 15 | 8 15 15 Average Capacity 11 | 6 8 15 Most Carried 5 | 2 3 5 Average Carried 2 | . 1 4 Final Capacity 15 | 8 15 15 Final Carried 4 | 1 2 4 Class Distribution -------------------- 100% | Mutant Dominant Class ---------------- Mutant | -10/Materials Mutant | -9/Materials Resources | -11 -10 -9 ----------- Run | Yrd Mat Mat Matter Collected 507 | 217 88 202 Remotely . | . . . Salvage Created 472 | . 116 356 Parts 22 | . 5 17 Haulers Intercepted . | . . . Recyclers Shooed 1 | . . 1 Parts Field Recycled . | . . . Retrieved Matter . | . . . Parts Self-Destructed . | . . . Prevented . | . . . Kills | -11 -10 -9 ------- Run | Yrd Mat Mat Combat Hostiles Destroyed 10 | . 3 7 Guns 3 | . 3 . Cannons 5 | . . 5 AOE 2 | . . 2 Classes Destroyed 5 | . 2 3 Recycler 1 | . . 1 Watcher 3 | . 1 2 Grunt 8 | . 3 5 Duelist 1 | . . 1 Sentry 1 | . . 1 Best Kill Streak 4 | . 3 4 Combat Bots Only 3 | . 3 3 Max Kills in Single Turn 1 | . 1 1 Gunslinging . | . . . Exploded 1 | . . 1 Melee . | . . . Uniques/NPCs Destroyed . | . . . Combat | -11 -10 -9 -------- Run | Yrd Mat Mat Hostile Shots Fired 102 | . 43 59 Missed 29 | . 9 20 Damage Taken 1157 | . 401 756 Core 464 | . 63 401 Absorbed by Shields . | . . . Core Remaining (%) 87 | 100 74 . Volleys Fired 56 | . 17 39 Largest 2 | . 2 2 Hottest 95 | . 70 95 Shots Fired 81 | . 34 47 Gun 34 | . 34 . Cannon 39 | . . 39 Launcher 8 | . . 8 Special . | . . . Kinetic 48 | . 17 31 Thermal 17 | . 17 . Explosive 8 | . . 8 Electromagnetic 8 | . . 8 Robot Hit Streak 10 | . 10 5 Robot Miss Streak 5 | . 3 5 Penetration Max . | . . . Secondary Targets . | . . . Shots Hit Robots 47 | . 22 25 Core Hits 24 | . 9 15 Critical Kills . | . . . Critical Parts Destroyed . | . . . Critical Strikes 1 | . 1 . Burn 1 | . 1 . Melee Attacks . | . . . Impact . | . . . Slashing . | . . . Piercing . | . . . Sneak Attacks . | . . . Combat Hostiles . | . . . Follow-up Attacks . | . . . Damage Inflicted 1131 | . 288 843 Guns 288 | . 288 . Cannons 466 | . . 466 Explosions 377 | . . 377 Melee . | . . . Ramming . | . . . Kinetic 473 | . 166 307 Thermal 122 | . 122 . Explosive 377 | . . 377 Electromagnetic 159 | . . 159 Impact . | . . . Slashing . | . . . Piercing . | . . . Highest Corruption . | . . . Average Corruption . | . . . Corruption Purged . | . . . Corruption Blocked . | . . . Overload Shots . | . . . Overflow Damage 7 | . . 7 Projectiles 7 | . . 7 Explosions . | . . . Melee . | . . . Knockbacks 5 | . . 5 Impact . | . . . Kinetic 5 | . . 5 Secondary . | . . . Self-Inflicted Damage 218 | . . 218 Shots 6 | . . 6 Rammed . | . . . Targets Rammed . | . . . Kicked . | . . . Crushed . | . . . Highest Temperature 253 | . 253 234 Average Temperature 108 | . 100 117 Received Heat Transfer 423 | . 225 198 Siege Activations . | . . . Robots Corrupted . | . . . Combat Hostiles . | . . . Parts Fried . | . . . Impact Corruptions . | . . . Robots Melted . | . . . Combat Hostiles . | . . . Parts Melted 3 | . 3 . Heat Transferred 444 | . 444 . Parts Sabotaged . | . . . Parts Stolen . | . . . Parts Stripped . | . . . Power Chain Reactions . | . . . Alert | -11 -10 -9 ------- Run | Yrd Mat Mat Peak Influence 328 | . 137 328 Initial 57 | . . 57 Average 85 | . 63 133 Maximum Alert Level 1 | . . 1 Low Security (%) 86 | 100 100 71 Level 1 13 | . . 28 Level 2 . | . . . Level 3 . | . . . Level 4 . | . . . Level 5 . | . . . High Security . | . . . Max Security . | . . . Squads Dispatched 1 | . 1 . Investigation . | . . . Extermination . | . . . Reinforcement 1 | . 1 . Assault . | . . . Garrison . | . . . Intercept . | . . . Searches Triggered . | . . . Construction Impeded . | . . . Haulers Reinforced . | . . . Active Scanning Responses . | . . . Cargo Convoy Interrupts . | . . . Stealth | -11 -10 -9 --------- Run | Yrd Mat Mat Distress Signals 5 | . 2 3 Communications Jammed . | . . . Distress Signals . | . . . Times Spotted 26 | . 10 16 Peak Tracking Total 7 | . 5 7 Tactical Retreats 2 | . 1 1 Traps | -11 -10 -9 ------- Run | Yrd Mat Mat Traps Triggered . | . . . Indirectly . | . . . Trap Hack Attempts . | . . . Triggered . | . . . Disarmed . | . . . Reprogrammed . | . . . Reused . | . . . Traps Extracted . | . . . Installed . | . . . Triggered . | . . . Machines | -11 -10 -9 ---------- Run | Yrd Mat Mat Machines Disabled 3 | . . 3 Max in Single Turn 1 | . . 1 Machines Repaired . | . . . Machines Dismantled . | . . . Machines Sabotaged . | . . . Overloaded Fab Kills . | . . . Hacking | -11 -10 -9 --------- Run | Yrd Mat Mat Machines Accessed 1 | . . 1 Terminals 1 | . . 1 Fabricators . | . . . Repair Stations . | . . . Recycling Units . | . . . Scanalyzers . | . . . Garrison Access . | . . . Total Hacks 2 | . . 2 Successful 1 | . . 1 Failed 1 | . . 1 Catastrophic . | . . . Database Lockouts . | . . . Manual . | . . . Terminals 2 | . . 2 Fabricators . | . . . Repair Stations . | . . . Recycling Units . | . . . Scanalyzers . | . . . Garrison Access . | . . . Terminal Hacks 1 | . . 1 Record 1 | . . 1 Fabricator Hacks . | . . . Repair Station Hacks . | . . . Recycling Unit Hacks . | . . . Scanalyzer . | . . . Garrison Access Hacks . | . . . Unauthorized Hacks . | . . . Terminals . | . . . Fabricators . | . . . Repair Stations . | . . . Recycling Units . | . . . Scanalyzers . | . . . Garrison Access . | . . . Data Cores Recovered . | . . . Used . | . . . Hacking Detections 1 | . . 1 Full Trace Events . | . . . Feedback Events . | . . . Feedback Blocked . | . . . Robot Schematics Acquired . | . . . Robots Built . | . . . Authchips . | . . . Time . | . . . Total Robot Build Rating . | . . . Part Schematics Acquired . | . . . Parts Built . | . . . Authchips . | . . . Time . | . . . Total Part Build Rating . | . . . Parts Repaired . | . . . Time . | . . . Parts Recycled . | . . . Recycled Matter . | . . . Retrieved Matter . | . . . Retrieved Components . | . . . Parts Scanalyzed . | . . . Part Schematics Acquired . | . . . Parts Damaged . | . . . Bothacking | -11 -10 -9 ------------ Run | Yrd Mat Mat Used RIF Installer . | . . . Robots Hacked . | . . . Non-combat . | . . . Combat . | . . . Robot Hacks Applied . | . . . Relay Couplers Released . | . . . Fabnet Peak Effective % . | . . . Robots Rewired . | . . . Allies Hacked . | . . . Hacks Repelled . | . . . Allies | -11 -10 -9 -------- Run | Yrd Mat Mat Total Allies . | . . . Largest Group . | . . . Highest-Rated Group . | . . . Highest-Rated Ally . | . . . Total Orders . | . . . Ally Attacks . | . . . Total Damage . | . . . Kills . | . . . Allies Corrupted . | . . . Allies Melted . | . . . Intel | -11 -10 -9 ------- Run | Yrd Mat Mat Robot Analysis Total . | . . . Derelict Logs Recovered . | . . . Drone Launches . | . . . Drone Recoveries . | . . . Exploration | -11 -10 -9 ------------- Run | Yrd Mat Mat Turns Passed 687 | 111 260 316 Spaces Moved 301 | 58 122 121 Core 8 | 5 . 3 Treads 293 | 53 122 118 Legs . | . . . Wheels . | . . . Hover . | . . . Flight . | . . . Fastest Speed 50 | 50 160 160 Average Speed 164 | 150 160 176 Slowest Speed 350 | 160 160 350 Overloaded Moves . | . . . Propulsion Burnouts . | . . . Robots Hopped . | . . . Cave-ins Triggered . | . . . Exploration Rate (%) 17 | 6 32 13 Regions Visited 2 Branch Regions . Pre-discovered Areas . | . . . Known Exits Taken . | . . . Unknown Exits Taken 2 | 1 1 . Scrap Searched . | . . . Spaces Dug . | . . . Terrain Destroyed 27 | . . 27 Melee . | . . . Projectile 3 | . . 3 AOE 24 | . . 24 Terrain Rammed . | . . . Walls Destroyed . | . . . Machines Disabled . | . . . Actions | -11 -10 -9 --------- Run | Yrd Mat Mat Total 411 | 82 153 176 Wait 26 | 12 11 3 Move 299 | 57 121 121 Hop . | . . . Pick Up 15 | 7 2 6 Fast Attach . | . . . Attach 11 | 6 1 4 Detach . | . . . Swap 3 | . . 3 Drop 1 | . 1 . Fire 56 | . 17 39 Melee . | . . . Ram . | . . . Kick . | . . . Crush . | . . . Escape Stasis . | . . . Rewire . | . . . Trap . | . . . Miscellaneous . | . . . Route ------- -11/Scrapyard -10/Materials -9/Materials (discovered 1 exit: [*Min]) History --------- Turn | Location | Event 10 | -11/Scrapyard | Discovered new exit (range 15) 112 | -11/Scrapyard | Entered Materials 303 | -10/Materials | Build established: Mutant 340 | -10/Materials | Discovered new exit (range 3) 372 | -10/Materials | Entered another Materials area 372 | -9/Materials | Evolved 2 slots: Utility x2 558 | -9/Materials | Discovered new exit (range 7) 665 | -9/Materials | Core integrity fell below 50% 670 | -9/Materials | Core integrity fell below 20% 688 | -9/Materials | Destroyed self with Mini Grenade Launcher Last Messages --------------- Mni. Grenade Launcher severed. Acquired Mni. Grenade Launcher. R-06 Scavenger destroyed. L-31 Rogue destroyed. U-05 Engineer builds a Wall. U-05 Engineer lays Concrete. Purification Channel disabled. U-05 Engineer lays Concrete. U-05 Engineer builds a Wall. U-05 Engineer lays Concrete. U-05 Engineer builds a Wall. U-05 Engineer lays Concrete. The unstable cave ceiling collapses. U-05 Engineer lays Concrete. U-05 Engineer builds a Wall. Electrolysis Chamber disabled. U-05 Engineer lays Concrete. R-06 Scavenger collects Sml. Storage Unit. U-05 Engineer lays Concrete. G-34 Mercenary destroyed. Map ----- +----------------------------------------------------+ | ???????????a?????????????????????????????????????? | | ?????????????????????????????????????????????????? | | ?????????????????????????????????????????????????? | | ?????????????????????????????????????????????????? | | ?????????????????????????????????????????????????? | | ?????????????????????????????????????????????????? | | ?????????????????????????????????????????????????? | | ?????????????????????????????????????????????????? | | ????????????????????????????! ??????????????????? | | ???????????????????????????? #?????????????????? | | ???????????????????????? ?? #??????????????a??? | | ???????????????????????? ?? /?????????????????? | | ???????????????????????? #? #?????????????????? | | ???????????????????????? # ###???????????????? | | ???????????????????????? "#??????????????? | | ?????????????????????? ""#??????????????? | | ???????????????????"" !!#??????????????? | | ???????????????????? < ""#??????????????? | | ????????????????????? "" # ||#??????????????? | | ????????????????????? S"" # ""#??????????????? | | ??????????????????????"" ????????????????? | | ??????????????????##### #####?????????????? | | ????########??????# u #### ?????????? | | ????# #??????# ?????? | | ????# !! #??????# % ?a???? | | ????# !] #??????# @ # %% ?????? | | ????# #??????# # " """ ??????? | | ##### #??????# % r# """"""""?? ? ??????? | | ## #??????# ru # """ "?????????????? | | #####"########## uu # ????????????? | | !%+ u #% ???????????? | | ##### ###################% """ ??????????? | | #??## #?????????????????? """ ???????????? | | #???# #?????????????????? """ ???????????? | | #???# #?????????????????? ?????? ?????????a?? | | #???# #?????????????????? ??????????????????? | | #???# #?????????????????? ??????????????????? | | ####???# #?????????????????? ??????????????????? | | ???????# #?????????????????? ??????????????????? | | ???????# #???????????????????????????????????????? | | ???????# #???????????????????????????????????????? | | ???????# #???????????????????????????????????????? | | ???????? ????????????????????????????????????????? | | ???????? ???????????????a????????????????????????? | | ???????? ????????????????????????????????????????? | | ???????? ????????????????????????????????????????? | | ##?????? ????????????????????????????????????????? | | #?????? ????????????????????????????????????????? | | #?????? ????????????????????????????????????????? | | #???????????????????????????????????????????????? | +----------------------------------------------------+ Best States ------------- Heat Dissipation 28 Energy Generation 10 Energy Capacity 125 Matter Stores 300 Matter Capacity 300 Sight Range 16 Terrain Scan Density 10 Evasion (%) 40 Recoil Reduction 2 Item Schematics ----------------- None Robot Schematics ------------------ None Fabricated ------------ Nothing Alien Tech Used ----------------- None Achievements -------------- None Challenges ------------ None Game ------ Seed CloakArmageddonComputer Manual? 0 Play Time 00:08:35 Cumulative 6.9 hours Start 2024.04.03 @ 18:31:43 End 2024.04.03 @ 18:44:36 Sessions 1 Manual Loads 0 Difficulty Rogue Special Mode None Game No. 10 Rogue 10 Adventurer 0 Explorer 0 Win Type - Total 0 Types 0/0/0/0/0/0/0/0/0 Lore% 13 Gallery% 14 Achievement% 14 Wizard Run 0 Options --------- Layout 1 ASCII 0 Keyboard 0 Movement Mouse Keybinds 0 Fullscreen 2 Font 24/Smallcaps Map View 50x35 Zoom Use 0% Tactical HUD 0 Map Filters NONE Filters NONE Steam 1 RUN: 726910ba-1b5d-4103-96ac-9353fc85db34